[Event "Early-Titled-Tuesday-Blitz-August-29-2023"]
[Site "Chess.com"]
[Date "2023.08.29"]
[Round "11"]
[White "BogdanDeac"]
[Black "Anton_Demchenko"]
[Result "1-0"]
[WhiteElo "3026"]
[BlackElo "2932"]
[TimeControl "180+1"]
[EndTime "10:04:51 PDT"]
[Termination "BogdanDeac won on time"]

1. e4 {[%clk 0:02:59]} 1... e5 {[%clk 0:03:00.2]} 2. Nf3 {[%clk 0:02:58.8]} 2...
Nc6 {[%clk 0:03:00.7]} 3. d4 {[%clk 0:02:58.2]} 3... exd4 {[%clk 0:03:00.8]} 4.
Nxd4 {[%clk 0:02:59.1]} 4... Bc5 {[%clk 0:02:59.1]} 5. Nb3 {[%clk 0:02:58.3]}
5... Bb6 {[%clk 0:02:59.3]} 6. Qe2 {[%clk 0:02:58.7]} 6... d6 {[%clk 0:02:59.1]}
7. Nc3 {[%clk 0:02:52.9]} 7... a5 {[%clk 0:02:57]} 8. Be3 {[%clk 0:02:52.8]}
8... Bxe3 {[%clk 0:02:51.4]} 9. Qxe3 {[%clk 0:02:52.6]} 9... a4 {[%clk
0:02:52.1]} 10. Nd4 {[%clk 0:02:51.4]} 10... a3 {[%clk 0:02:52.7]} 11. b3 {[%clk
0:02:48]} 11... Nf6 {[%clk 0:02:47.4]} 12. Bb5 {[%clk 0:02:20.3]} 12... Bd7
{[%clk 0:02:47]} 13. O-O {[%clk 0:02:17]} 13... O-O {[%clk 0:02:36.3]} 14. Bxc6
{[%clk 0:02:10.5]} 14... bxc6 {[%clk 0:02:35]} 15. Rfe1 {[%clk 0:02:07.5]} 15...
Re8 {[%clk 0:02:24.1]} 16. Qg3 {[%clk 0:02:05.1]} 16... Qb8 {[%clk 0:02:17.6]}
17. Qd3 {[%clk 0:01:49.5]} 17... Qb4 {[%clk 0:02:14.6]} 18. f3 {[%clk
0:01:35.9]} 18... Re5 {[%clk 0:02:08.7]} 19. Nde2 {[%clk 0:00:53.5]} 19... Rae8
{[%clk 0:02:02.1]} 20. Ng3 {[%clk 0:00:53.4]} 20... h5 {[%clk 0:01:54]} 21. h4
{[%clk 0:00:46.7]} 21... g5 {[%clk 0:01:25.5]} 22. hxg5 {[%clk 0:00:40.7]} 22...
Rxg5 {[%clk 0:01:26.4]} 23. Nge2 {[%clk 0:00:40.1]} 23... Qc5+ {[%clk
0:01:06.7]} 24. Qd4 {[%clk 0:00:37.8]} 24... Qxd4+ {[%clk 0:01:07.1]} 25. Nxd4
{[%clk 0:00:37.8]} 25... h4 {[%clk 0:01:08]} 26. Kf2 {[%clk 0:00:33.7]} 26...
Kg7 {[%clk 0:00:59.9]} 27. Nde2 {[%clk 0:00:27.2]} 27... Rh8 {[%clk 0:00:55.9]}
28. Rh1 {[%clk 0:00:17.7]} 28... Rc5 {[%clk 0:00:49]} 29. Rac1 {[%clk 0:00:14]}
29... Rch5 {[%clk 0:00:29.6]} 30. Nb1 {[%clk 0:00:12.8]} 30... Rb5 {[%clk
0:00:29.5]} 31. c4 {[%clk 0:00:11.1]} 31... Ra5 {[%clk 0:00:29.6]} 32. Rcd1
{[%clk 0:00:10.2]} 32... Be6 {[%clk 0:00:27.6]} 33. Nf4 {[%clk 0:00:09.2]} 33...
Nd7 {[%clk 0:00:27.2]} 34. Rd2 {[%clk 0:00:05.5]} 34... Ne5 {[%clk 0:00:25.2]}
35. Nc3 {[%clk 0:00:05.8]} 35... Raa8 {[%clk 0:00:24.2]} 36. Nce2 {[%clk
0:00:05.4]} 36... Kf6 {[%clk 0:00:23.3]} 37. Nd4 {[%clk 0:00:04.9]} 37... Bd7
{[%clk 0:00:22.4]} 38. Nfe2 {[%clk 0:00:04.6]} 38... Ke7 {[%clk 0:00:20.6]} 39.
Nc2 {[%clk 0:00:04.1]} 39... Be6 {[%clk 0:00:18.3]} 40. Ne3 {[%clk 0:00:04.2]}
40... Rag8 {[%clk 0:00:16.8]} 41. Nd4 {[%clk 0:00:04.3]} 41... Bd7 {[%clk
0:00:16.6]} 42. Ndf5+ {[%clk 0:00:04.6]} 42... Kd8 {[%clk 0:00:17.3]} 43. Rxh4
{[%clk 0:00:04.3]} 43... Rxh4 {[%clk 0:00:16.5]} 44. Nxh4 {[%clk 0:00:05.2]}
44... Rh8 {[%clk 0:00:17.4]} 45. Nhf5 {[%clk 0:00:04.6]} 45... Rh1 {[%clk
0:00:17.7]} 46. Rd1 {[%clk 0:00:04.4]} 46... Rxd1 {[%clk 0:00:15.5]} 47. Nxd1
{[%clk 0:00:05.3]} 47... Nd3+ {[%clk 0:00:16.1]} 48. Ke3 {[%clk 0:00:05.3]}
48... Nb4 {[%clk 0:00:15.7]} 49. Nc3 {[%clk 0:00:05.9]} 49... Bxf5 {[%clk
0:00:15.3]} 50. exf5 {[%clk 0:00:06.8]} 50... Ke7 {[%clk 0:00:16]} 51. g4 {[%clk
0:00:06.8]} 51... Kf6 {[%clk 0:00:15.5]} 52. f4 {[%clk 0:00:06.5]} 52... d5
{[%clk 0:00:01.6]} 53. c5 {[%clk 0:00:06.4]} 53... Ke7 {[%clk 0:00:01.3]} 54.
Kd2 {[%clk 0:00:06.4]} 54... Na6 {[%clk 0:00:01.3]} 55. Na4 {[%clk 0:00:06]}
55... Nb4 {[%clk 0:00:02]} 56. Nc3 {[%clk 0:00:06.3]} 56... Na6 {[%clk
0:00:02.5]} 57. Nb1 {[%clk 0:00:06.8]} 57... Nxc5 {[%clk 0:00:02.2]} 58. Nxa3
{[%clk 0:00:07.4]} 58... Ne4+ {[%clk 0:00:02.2]} 59. Ke3 {[%clk 0:00:07.8]}
59... Nf6 {[%clk 0:00:01.9]} 60. Kf3 {[%clk 0:00:07]} 60... Ne4 {[%clk 0:00:02]}
61. Nc2 {[%clk 0:00:06.8]} 61... Nc3 {[%clk 0:00:01.5]} 62. a4 {[%clk
0:00:06.9]} 62... c5 {[%clk 0:00:02.2]} 63. a5 {[%clk 0:00:07]} 63... c4 {[%clk
0:00:01.4]} 64. bxc4 {[%clk 0:00:07.1]} 64... dxc4 {[%clk 0:00:02.3]} 65. a6
{[%clk 0:00:07.6]} 65... Nb5 {[%clk 0:00:02.8]} 66. g5 {[%clk 0:00:08]} 66... c3
{[%clk 0:00:01.8]} 67. Ke3 {[%clk 0:00:08.2]} 67... c5 {[%clk 0:00:01.5]} 68.
Kd3 {[%clk 0:00:08.5]} 1-0

[Event "Early-Titled-Tuesday-Blitz-August-29-2023"]
[Site "Chess.com"]
[Date "2023.08.29"]
[Round "11"]
[White "ErikRonka"]
[Black "Caisachess"]
[Result "1-0"]
[WhiteElo "2505"]
[BlackElo "2345"]
[TimeControl "180+1"]
[EndTime "10:04:57 PDT"]
[Termination "ErikRonka won on time"]

1. e4 {[%clk 0:03:00.9]} 1... e5 {[%clk 0:02:59.2]} 2. Nf3 {[%clk 0:02:59.5]}
2... Nc6 {[%clk 0:02:59.8]} 3. Nc3 {[%clk 0:02:58.5]} 3... Nf6 {[%clk 0:02:58]}
4. d4 {[%clk 0:02:58.8]} 4... exd4 {[%clk 0:02:56.7]} 5. Nxd4 {[%clk 0:02:59.7]}
5... Nxe4 {[%clk 0:02:54]} 6. Nxe4 {[%clk 0:02:57.9]} 6... Qe7 {[%clk
0:02:52.9]} 7. f3 {[%clk 0:02:58.3]} 7... d5 {[%clk 0:02:51.6]} 8. Bb5 {[%clk
0:02:58.7]} 8... Bd7 {[%clk 0:02:51.4]} 9. Bxc6 {[%clk 0:02:57.7]} 9... bxc6
{[%clk 0:02:51.3]} 10. O-O {[%clk 0:02:48.6]} 10... dxe4 {[%clk 0:02:51.4]} 11.
Nb3 {[%clk 0:02:22.6]} 11... Qd6 {[%clk 0:02:34.1]} 12. Qe2 {[%clk 0:02:11.6]}
12... Be7 {[%clk 0:02:30.4]} 13. Qxe4 {[%clk 0:02:06.8]} 13... O-O {[%clk
0:02:27.8]} 14. Bf4 {[%clk 0:02:07.2]} 14... Qf6 {[%clk 0:02:08]} 15. Be5 {[%clk
0:02:05.8]} 15... Qh6 {[%clk 0:01:51.4]} 16. Bxg7 {[%clk 0:01:45.8]} 16... Qxg7
{[%clk 0:01:44.1]} 17. Qxe7 {[%clk 0:01:46.1]} 17... Bh3 {[%clk 0:01:44.2]} 18.
Qe2 {[%clk 0:01:37.3]} 18... Rfe8 {[%clk 0:01:39.7]} 19. Qf2 {[%clk 0:01:37.2]}
19... Re6 {[%clk 0:01:36.4]} 20. Kh1 {[%clk 0:01:28]} 20... Bf5 {[%clk
0:01:34.5]} 21. Nd4 {[%clk 0:01:25.8]} 21... Re5 {[%clk 0:01:32.2]} 22. Nxc6
{[%clk 0:01:18.6]} 22... Ree8 {[%clk 0:01:24.9]} 23. Rae1 {[%clk 0:01:14.8]}
23... Bg6 {[%clk 0:01:20.8]} 24. Ne7+ {[%clk 0:01:13.6]} 24... Kh8 {[%clk
0:01:20.3]} 25. Nxg6+ {[%clk 0:01:13.8]} 25... Qxg6 {[%clk 0:01:19.9]} 26. c3
{[%clk 0:01:06.9]} 26... a5 {[%clk 0:01:18.4]} 27. h3 {[%clk 0:00:59]} 27...
Rab8 {[%clk 0:01:16.5]} 28. b3 {[%clk 0:00:58.5]} 28... Qf6 {[%clk 0:01:14.5]}
29. Qd4 {[%clk 0:00:54]} 29... Qxd4 {[%clk 0:01:14.4]} 30. cxd4 {[%clk
0:00:54.9]} 30... Red8 {[%clk 0:01:14.8]} 31. Re7 {[%clk 0:00:49.9]} 31... Kg7
{[%clk 0:01:13.2]} 32. Rc1 {[%clk 0:00:48.4]} 32... Rxd4 {[%clk 0:01:09]} 33.
Rcxc7 {[%clk 0:00:48]} 33... Rf4 {[%clk 0:01:09.6]} 34. Re4 {[%clk 0:00:45.5]}
34... Rf5 {[%clk 0:01:08.9]} 35. Rec4 {[%clk 0:00:38.5]} 35... Rd8 {[%clk
0:01:07.5]} 36. R7c5 {[%clk 0:00:37.6]} 36... Rdd5 {[%clk 0:00:56]} 37. Rxd5
{[%clk 0:00:37.3]} 37... Rxd5 {[%clk 0:00:56.9]} 38. Kh2 {[%clk 0:00:35.9]}
38... Kf6 {[%clk 0:00:54.1]} 39. a3 {[%clk 0:00:31.8]} 39... Rd3 {[%clk
0:00:50.2]} 40. Ra4 {[%clk 0:00:24.4]} 40... Rxb3 {[%clk 0:00:49.9]} 41. Rxa5
{[%clk 0:00:24.8]} 41... Rb2 {[%clk 0:00:49.2]} 42. h4 {[%clk 0:00:22.2]} 42...
Ra2 {[%clk 0:00:47.5]} 43. Kh3 {[%clk 0:00:22.6]} 43... Ra1 {[%clk 0:00:47]} 44.
g4 {[%clk 0:00:19.4]} 44... Kg7 {[%clk 0:00:46.6]} 45. Kg3 {[%clk 0:00:19.9]}
45... Ra2 {[%clk 0:00:46.4]} 46. Kf4 {[%clk 0:00:20.1]} 46... Ra1 {[%clk
0:00:44.7]} 47. a4 {[%clk 0:00:16.7]} 47... Ra3 {[%clk 0:00:43.8]} 48. Ra8
{[%clk 0:00:15.7]} 48... Rb3 {[%clk 0:00:41.5]} 49. g5 {[%clk 0:00:15.2]} 49...
Rb4+ {[%clk 0:00:41.3]} 50. Kg3 {[%clk 0:00:15.5]} 50... Rb3 {[%clk 0:00:40.7]}
51. Kg4 {[%clk 0:00:15.6]} 51... Rb4+ {[%clk 0:00:39.4]} 52. f4 {[%clk
0:00:16.1]} 52... h5+ {[%clk 0:00:26.6]} 53. gxh6+ {[%clk 0:00:05.6]} 53... Kxh6
{[%clk 0:00:25.9]} 54. h5 {[%clk 0:00:06.5]} 54... Rb1 {[%clk 0:00:20.3]} 55. a5
{[%clk 0:00:06.1]} 55... Rg1+ {[%clk 0:00:17.9]} 56. Kf5 {[%clk 0:00:06.4]}
56... Ra1 {[%clk 0:00:16.1]} 57. a6 {[%clk 0:00:05.8]} 57... Ra5+ {[%clk
0:00:14]} 58. Kf6 {[%clk 0:00:05.1]} 58... Kxh5 {[%clk 0:00:14.6]} 59. a7 {[%clk
0:00:03.5]} 59... Ra6+ {[%clk 0:00:11.1]} 60. Kxf7 {[%clk 0:00:03.4]} 60... Kg4
{[%clk 0:00:07.8]} 61. Rg8+ {[%clk 0:00:03.3]} 61... Kxf4 {[%clk 0:00:08.5]} 62.
a8=Q {[%clk 0:00:04.1]} 62... Rxa8 {[%clk 0:00:07.2]} 63. Rxa8 {[%clk 0:00:05]}
63... Kf5 {[%clk 0:00:07.2]} 64. Ra6 {[%clk 0:00:05.3]} 64... Ke4 {[%clk
0:00:07.4]} 65. Re6+ {[%clk 0:00:06.2]} 65... Kd5 {[%clk 0:00:07.7]} 66. Kf6
{[%clk 0:00:07.1]} 66... Kd4 {[%clk 0:00:07.9]} 67. Re5 {[%clk 0:00:07.1]} 67...
Kc4 {[%clk 0:00:08.4]} 68. Kf5 {[%clk 0:00:06.9]} 68... Kd4 {[%clk 0:00:09.3]}
69. Kf4 {[%clk 0:00:07.4]} 69... Kc4 {[%clk 0:00:08.7]} 70. Ke4 {[%clk
0:00:07.8]} 70... Kc3 {[%clk 0:00:08.6]} 71. Rd5 {[%clk 0:00:08.7]} 71... Kc2
{[%clk 0:00:08.7]} 72. Rd3 {[%clk 0:00:08.5]} 1-0

[Event "Early-Titled-Tuesday-Blitz-August-29-2023"]
[Site "Chess.com"]
[Date "2023.08.29"]
[Round "11"]
[White "garfield_pg"]
[Black "vladgoncharov"]
[Result "1-0"]
[WhiteElo "2392"]
[BlackElo "2532"]
[TimeControl "180+1"]
[EndTime "10:05:02 PDT"]
[Termination "garfield_pg won by resignation"]

1. d4 {[%clk 0:03:00.9]} 1... Nf6 {[%clk 0:02:56.8]} 2. Bf4 {[%clk 0:02:59.4]}
2... c5 {[%clk 0:02:55.7]} 3. dxc5 {[%clk 0:02:58.9]} 3... Na6 {[%clk
0:02:51.1]} 4. Qd4 {[%clk 0:02:54.7]} 4... Qa5+ {[%clk 0:02:49.1]} 5. c3 {[%clk
0:02:53.3]} 5... Qxc5 {[%clk 0:02:49]} 6. e3 {[%clk 0:02:53.9]} 6... Qxd4 {[%clk
0:02:38.7]} 7. exd4 {[%clk 0:02:49.7]} 7... b6 {[%clk 0:02:38]} 8. Na3 {[%clk
0:02:44.4]} 8... Nd5 {[%clk 0:02:18.1]} 9. Bg3 {[%clk 0:02:38.6]} 9... Ndc7
{[%clk 0:02:18]} 10. Nf3 {[%clk 0:02:10.6]} 10... Bb7 {[%clk 0:02:17.5]} 11. Nb5
{[%clk 0:02:10.6]} 11... Nxb5 {[%clk 0:02:16.2]} 12. Bxb5 {[%clk 0:02:11.5]}
12... f6 {[%clk 0:02:06.8]} 13. a4 {[%clk 0:02:10.1]} 13... Nb8 {[%clk
0:01:48.2]} 14. a5 {[%clk 0:02:06.8]} 14... a6 {[%clk 0:01:47.4]} 15. axb6
{[%clk 0:02:05.7]} 15... Kd8 {[%clk 0:01:23.6]} 16. Be2 {[%clk 0:01:38.3]} 16...
d6 {[%clk 0:01:22.1]} 17. c4 {[%clk 0:01:25]} 17... Nd7 {[%clk 0:01:21.6]} 18.
c5 {[%clk 0:01:23.6]} 18... dxc5 {[%clk 0:01:12.5]} 19. dxc5 {[%clk 0:01:24.5]}
19... Nxc5 {[%clk 0:01:12.4]} 20. Bc7+ {[%clk 0:01:21.5]} 20... Ke8 {[%clk
0:01:12.1]} 21. Bc4 {[%clk 0:01:09.6]} 21... e5 {[%clk 0:01:08.3]} 22. O-O
{[%clk 0:01:07.6]} 22... Be7 {[%clk 0:00:49.2]} 23. Rfd1 {[%clk 0:01:00.4]}
23... Nd7 {[%clk 0:00:41.5]} 24. Be6 {[%clk 0:00:38.8]} 24... Nc5 {[%clk
0:00:41.3]} 25. Bc4 {[%clk 0:00:34.1]} 25... Nd7 {[%clk 0:00:40.4]} 26. Be6
{[%clk 0:00:19]} 26... Nc5 {[%clk 0:00:40.3]} 27. Bd5 {[%clk 0:00:19.8]} 27...
Bxd5 {[%clk 0:00:38.5]} 28. Rxd5 {[%clk 0:00:20.7]} 28... Nb7 {[%clk 0:00:37.9]}
29. Nd2 {[%clk 0:00:18.1]} 29... Kf7 {[%clk 0:00:37.1]} 30. Nc4 {[%clk
0:00:16.1]} 30... Ke6 {[%clk 0:00:36.9]} 31. Rad1 {[%clk 0:00:15.7]} 31... a5
{[%clk 0:00:33.3]} 32. f4 {[%clk 0:00:11.9]} 32... exf4 {[%clk 0:00:25.7]} 33.
Bxf4 {[%clk 0:00:12.8]} 33... a4 {[%clk 0:00:24.5]} 34. Rd7 {[%clk 0:00:11.7]}
34... Nc5 {[%clk 0:00:23.1]} 35. Rc7 {[%clk 0:00:11.1]} 35... Rac8 {[%clk
0:00:20]} 36. Re1+ {[%clk 0:00:10.6]} 36... Kf5 {[%clk 0:00:19.3]} 37. Bg3
{[%clk 0:00:11.1]} 37... Rxc7 {[%clk 0:00:15.7]} 38. bxc7 {[%clk 0:00:10.7]}
38... Ne4 {[%clk 0:00:12.4]} 39. Kf1 {[%clk 0:00:06.4]} 39... Bc5 {[%clk
0:00:11.7]} 40. Rd1 {[%clk 0:00:04.4]} 40... Be7 {[%clk 0:00:06]} 41. Rd5+
{[%clk 0:00:03.6]} 41... Ke6 {[%clk 0:00:05.5]} 42. Ra5 {[%clk 0:00:04.2]} 42...
Nxg3+ {[%clk 0:00:05.7]} 43. hxg3 {[%clk 0:00:04.4]} 43... Rc8 {[%clk
0:00:05.7]} 44. Rxa4 {[%clk 0:00:04.4]} 44... Rxc7 {[%clk 0:00:05.9]} 45. b3
{[%clk 0:00:03.3]} 45... Rb7 {[%clk 0:00:05.9]} 46. Ra6+ {[%clk 0:00:02.2]}
46... Kf5 {[%clk 0:00:05.5]} 47. Rb6 {[%clk 0:00:02.8]} 47... Rc7 {[%clk
0:00:05.1]} 48. Rb5+ {[%clk 0:00:02.7]} 48... Kg4 {[%clk 0:00:04.4]} 49. Ne3+
{[%clk 0:00:02.4]} 49... Kxg3 {[%clk 0:00:04.3]} 50. Nf5+ {[%clk 0:00:02.4]}
50... Kf4 {[%clk 0:00:04.7]} 51. Nxg7 {[%clk 0:00:01.9]} 51... Bc5 {[%clk
0:00:04.4]} 52. Ne6+ {[%clk 0:00:02.4]} 52... Ke3 {[%clk 0:00:02.7]} 53. Nxc7
{[%clk 0:00:03.3]} 53... Bd4 {[%clk 0:00:03.1]} 54. Rd5 {[%clk 0:00:02.7]} 54...
Bc3 {[%clk 0:00:04]} 55. Rd7 {[%clk 0:00:03.5]} 55... Be5 {[%clk 0:00:04.7]} 56.
Nd5+ {[%clk 0:00:03.6]} 56... Ke4 {[%clk 0:00:04.1]} 57. b4 {[%clk 0:00:04.5]}
57... Kd4 {[%clk 0:00:04.1]} 58. b5 {[%clk 0:00:05.4]} 58... Kc5 {[%clk
0:00:04.8]} 59. b6 {[%clk 0:00:05.8]} 59... Kc6 {[%clk 0:00:05.7]} 60. Rd8
{[%clk 0:00:06.4]} 60... Kb7 {[%clk 0:00:05.6]} 61. Ne3 {[%clk 0:00:04.7]} 61...
Kc6 {[%clk 0:00:06.5]} 62. Rh8 {[%clk 0:00:04.6]} 62... Kb7 {[%clk 0:00:07.4]}
63. Rxh7+ {[%clk 0:00:05.3]} 63... Kxb6 {[%clk 0:00:08.3]} 64. Ng4 {[%clk
0:00:05.8]} 64... Kc5 {[%clk 0:00:09.2]} 65. Nxe5 {[%clk 0:00:06.4]} 65... Kd4
{[%clk 0:00:10.1]} 66. Rf7 {[%clk 0:00:06.7]} 66... Ke4 {[%clk 0:00:11]} 67. Nd7
{[%clk 0:00:06.6]} 67... Kf5 {[%clk 0:00:10.9]} 68. Rxf6+ {[%clk 0:00:07.1]}
68... Kg5 {[%clk 0:00:11.8]} 69. Rf3 {[%clk 0:00:07.2]} 69... Kg4 {[%clk
0:00:12.7]} 70. Ne5+ {[%clk 0:00:07.3]} 70... Kg5 {[%clk 0:00:12.2]} 71. g4
{[%clk 0:00:07.3]} 71... Kh4 {[%clk 0:00:12.5]} 72. Kg2 {[%clk 0:00:07.2]} 72...
Kg5 {[%clk 0:00:13]} 73. Rf5+ {[%clk 0:00:07.5]} 73... Kh6 {[%clk 0:00:13.6]}
74. Nf7+ {[%clk 0:00:07]} 74... Kg6 {[%clk 0:00:13.8]} 75. Kg3 {[%clk
0:00:07.1]} 75... Kg7 {[%clk 0:00:14.1]} 76. Ne5 {[%clk 0:00:07.6]} 76... Kh6
{[%clk 0:00:14.1]} 77. Kh4 {[%clk 0:00:07.8]} 1-0

[Event "Early-Titled-Tuesday-Blitz-August-29-2023"]
[Site "Chess.com"]
[Date "2023.08.29"]
[Round "11"]
[White "hitaman"]
[Black "likantrophuss"]
[Result "1-0"]
[WhiteElo "2725"]
[BlackElo "2572"]
[TimeControl "180+1"]
[EndTime "10:05:06 PDT"]
[Termination "hitaman won by checkmate"]

1. e4 {[%clk 0:03:00.9]} 1... d6 {[%clk 0:02:59.8]} 2. d4 {[%clk 0:03:00.8]}
2... g6 {[%clk 0:02:59.7]} 3. f4 {[%clk 0:03:00]} 3... Bg7 {[%clk 0:02:59.3]} 4.
Nf3 {[%clk 0:03:00.4]} 4... a6 {[%clk 0:02:59.2]} 5. Nc3 {[%clk 0:02:56.4]} 5...
Nd7 {[%clk 0:02:57.8]} 6. Bd3 {[%clk 0:02:56.1]} 6... c5 {[%clk 0:02:57.6]} 7.
d5 {[%clk 0:02:45.8]} 7... b5 {[%clk 0:02:56.6]} 8. O-O {[%clk 0:02:41.2]} 8...
c4 {[%clk 0:02:55.5]} 9. Be2 {[%clk 0:02:41.4]} 9... Qb6+ {[%clk 0:02:51]} 10.
Kh1 {[%clk 0:02:41.2]} 10... Ngf6 {[%clk 0:02:47.1]} 11. e5 {[%clk 0:02:05.8]}
11... Ng4 {[%clk 0:02:37.6]} 12. e6 {[%clk 0:02:03]} 12... Ndf6 {[%clk
0:02:35.9]} 13. exf7+ {[%clk 0:02:00.3]} 13... Kf8 {[%clk 0:02:35.9]} 14. Qd4
{[%clk 0:01:36.2]} 14... Qxd4 {[%clk 0:02:25.3]} 15. Nxd4 {[%clk 0:01:37.1]}
15... h5 {[%clk 0:02:15.4]} 16. Ne6+ {[%clk 0:01:29]} 16... Kxf7 {[%clk
0:02:14.8]} 17. Nxg7 {[%clk 0:01:28.1]} 17... Kxg7 {[%clk 0:02:14]} 18. Bf3
{[%clk 0:01:25.5]} 18... Bb7 {[%clk 0:02:13.2]} 19. a3 {[%clk 0:01:23.8]} 19...
Nh6 {[%clk 0:02:02.9]} 20. Be3 {[%clk 0:01:21.6]} 20... Nf5 {[%clk 0:02:03]} 21.
Bf2 {[%clk 0:01:21.1]} 21... Ng4 {[%clk 0:02:00.9]} 22. Bg1 {[%clk 0:01:09.9]}
22... Rae8 {[%clk 0:01:52.9]} 23. Rfe1 {[%clk 0:01:07.8]} 23... Rhf8 {[%clk
0:01:52.6]} 24. Rad1 {[%clk 0:01:05.5]} 24... Kh7 {[%clk 0:01:43.9]} 25. Ne4
{[%clk 0:01:05.3]} 25... Ng7 {[%clk 0:01:36.1]} 26. Ng5+ {[%clk 0:01:04]} 26...
Kg8 {[%clk 0:01:36.6]} 27. h3 {[%clk 0:00:59.2]} 27... Nh6 {[%clk 0:01:23.4]}
28. Bd4 {[%clk 0:00:55.4]} 28... Nhf5 {[%clk 0:01:13.5]} 29. Bf2 {[%clk
0:00:55.5]} 29... Nh6 {[%clk 0:01:07]} 30. Re4 {[%clk 0:00:48.2]} 30... e5
{[%clk 0:01:01.5]} 31. dxe6 {[%clk 0:00:44.2]} 31... Bxe4 {[%clk 0:01:02.4]} 32.
Bxe4 {[%clk 0:00:44.5]} 32... Nxe6 {[%clk 0:01:01.6]} 33. Bd5 {[%clk 0:00:43.7]}
33... Rxf4 {[%clk 0:00:51.7]} 34. Bg3 {[%clk 0:00:40.4]} 34... Rf6 {[%clk
0:00:46]} 35. Re1 {[%clk 0:00:40.5]} 35... Nf5 {[%clk 0:00:46.4]} 36. Bf2 {[%clk
0:00:35.2]} 36... Ng7 {[%clk 0:00:42.1]} 37. Bd4 {[%clk 0:00:32.3]} 37... Rf5
{[%clk 0:00:42.6]} 38. Bxe6+ {[%clk 0:00:27]} 38... Nxe6 {[%clk 0:00:36]} 39.
Rxe6 {[%clk 0:00:24.7]} 39... Rxe6 {[%clk 0:00:34.8]} 40. Nxe6 {[%clk
0:00:25.6]} 40... Kf7 {[%clk 0:00:33.4]} 41. Nd8+ {[%clk 0:00:20.2]} 41... Ke7
{[%clk 0:00:31.7]} 42. Nc6+ {[%clk 0:00:19.8]} 42... Ke8 {[%clk 0:00:31]} 43.
Kg1 {[%clk 0:00:18.2]} 43... Rd5 {[%clk 0:00:30.7]} 44. c3 {[%clk 0:00:17.7]}
44... Rf5 {[%clk 0:00:26]} 45. Nb8 {[%clk 0:00:16.7]} 45... a5 {[%clk
0:00:24.9]} 46. Nc6 {[%clk 0:00:17.4]} 46... a4 {[%clk 0:00:23.3]} 47. Be3
{[%clk 0:00:17.8]} 47... Kd7 {[%clk 0:00:22.8]} 48. Nd4 {[%clk 0:00:18.3]} 48...
Re5 {[%clk 0:00:22]} 49. Kf2 {[%clk 0:00:18.5]} 49... Kc7 {[%clk 0:00:14.5]} 50.
Kf3 {[%clk 0:00:19]} 50... Kb6 {[%clk 0:00:12.8]} 51. Kf4 {[%clk 0:00:14.2]}
51... Ka6 {[%clk 0:00:13]} 52. h4 {[%clk 0:00:14.1]} 52... Rd5 {[%clk
0:00:11.3]} 53. g3 {[%clk 0:00:13.6]} 53... Re5 {[%clk 0:00:11.7]} 54. Kf3
{[%clk 0:00:13.8]} 54... Rd5 {[%clk 0:00:12.1]} 55. Ke2 {[%clk 0:00:14.3]} 55...
Re5 {[%clk 0:00:12.5]} 56. Kd2 {[%clk 0:00:14.8]} 56... Rd5 {[%clk 0:00:12.9]}
57. Bf4 {[%clk 0:00:15.4]} 57... Kb7 {[%clk 0:00:10.5]} 58. Ke3 {[%clk
0:00:15.7]} 58... Kb6 {[%clk 0:00:09.6]} 59. Ke4 {[%clk 0:00:15.9]} 59... Rc5
{[%clk 0:00:10.2]} 60. Bxd6 {[%clk 0:00:16.2]} 60... Rc8 {[%clk 0:00:10.8]} 61.
Bf4 {[%clk 0:00:16.4]} 61... Re8+ {[%clk 0:00:11.4]} 62. Be5 {[%clk 0:00:16.9]}
62... Rf8 {[%clk 0:00:11.8]} 63. Bf4 {[%clk 0:00:16.2]} 63... Re8+ {[%clk
0:00:12.2]} 64. Be5 {[%clk 0:00:15.7]} 64... Rf8 {[%clk 0:00:12.7]} 65. Nf3
{[%clk 0:00:16.4]} 65... Rd8 {[%clk 0:00:12.9]} 66. Bd4+ {[%clk 0:00:16.7]}
66... Ka6 {[%clk 0:00:12.8]} 67. Ne5 {[%clk 0:00:14.8]} 67... Rf8 {[%clk
0:00:13.4]} 68. Nxg6 {[%clk 0:00:14.1]} 68... Rg8 {[%clk 0:00:13.9]} 69. Kf5
{[%clk 0:00:13.9]} 69... Re8 {[%clk 0:00:14.6]} 70. Nf4 {[%clk 0:00:11.4]} 70...
Re1 {[%clk 0:00:14.5]} 71. Nxh5 {[%clk 0:00:11.3]} 71... Rb1 {[%clk 0:00:15]}
72. Nf4 {[%clk 0:00:10.3]} 72... Rxb2 {[%clk 0:00:15.4]} 73. h5 {[%clk
0:00:10.3]} 73... Ra2 {[%clk 0:00:14.1]} 74. h6 {[%clk 0:00:10.6]} 74... Rh2
{[%clk 0:00:14.3]} 75. Kg6 {[%clk 0:00:09.7]} 75... b4 {[%clk 0:00:14.2]} 76.
cxb4 {[%clk 0:00:10.6]} 76... Kb5 {[%clk 0:00:14.6]} 77. Bc3 {[%clk 0:00:09.1]}
77... Rc2 {[%clk 0:00:11.9]} 78. h7 {[%clk 0:00:08.3]} 78... Rxc3 {[%clk
0:00:12]} 79. h8=Q {[%clk 0:00:08.8]} 79... Rxg3+ {[%clk 0:00:12.4]} 80. Kf5
{[%clk 0:00:09.5]} 80... c3 {[%clk 0:00:12.5]} 81. Qe5+ {[%clk 0:00:08.9]} 81...
Kc4 {[%clk 0:00:12.9]} 82. Qd5# {[%clk 0:00:09.1]} 1-0